[Event "Titled Tuesday Blitz November 01 Late 2022"]
[White "Poliakova, Varvara"]
[Black "Romero Ruscalleda, Josep"]
[WhiteFideId "13518313"]
[BlackFideId "2231859"]
[WhiteElo "1938"]
[BlackElo "2295"]
[Result "1-0"]
[Round "02"]
[TimeControl "180+1"]
[Date "2022.11.02"]
[WhiteClock "0:01:11"]
[BlackClock "0:00:04"]

1. e4 {[%clk 0:03:00]}  g6 {[%clk 0:03:00]} 2. d4 {[%clk 0:02:58]}  Bg7 {[%clk 0:03:01]} 3. Nc3 {[%clk 0:02:57]}  d6 {[%clk 0:03:01]} 4. f4 {[%clk 0:02:56]}  a6 {[%clk 0:03:02]} 5. Nf3 {[%clk 0:02:56]}  b5 {[%clk 0:03:02]} 6. Bd3 {[%clk 0:02:49]}  Nd7 {[%clk 0:03:02]} 7. O-O {[%clk 0:02:46]}  c5 {[%clk 0:03:02]} 8. e5 {[%clk 0:02:44]}  cxd4 {[%clk 0:02:59]} 9. Ne4 {[%clk 0:02:33]}  dxe5 {[%clk 0:02:59]} 10. fxe5 {[%clk 0:02:33]}  Nxe5 {[%clk 0:02:57]} 11. Nxe5 {[%clk 0:02:33]}  Bxe5 {[%clk 0:02:57]} 12. Qf3 {[%clk 0:02:30]}  Be6 {[%clk 0:02:52]} 13. Ng5 {[%clk 0:02:24]}  Bd5 {[%clk 0:02:32]} 14. Be4 {[%clk 0:02:23]}  Nf6 {[%clk 0:02:24]} 15. Bxd5 {[%clk 0:02:22]}  Qxd5 {[%clk 0:02:24]} 16. Qxd5 {[%clk 0:02:21]}  Nxd5 {[%clk 0:02:22]} 17. Nxf7 {[%clk 0:02:22]}  Bxh2+ {[%clk 0:02:13]} 18. Kxh2 {[%clk 0:02:19]}  Rf8 {[%clk 0:02:13]} 19. Rd1 {[%clk 0:02:18]}  Rxf7 {[%clk 0:02:05]} 20. Rxd4 {[%clk 0:02:18]}  O-O-O {[%clk 0:02:03]} 21. Bd2 {[%clk 0:02:11]}  e5 {[%clk 0:01:59]} 22. Re4 {[%clk 0:02:08]}  Rf5 {[%clk 0:01:49]} 23. Rae1 {[%clk 0:02:00]}  Nf6 {[%clk 0:01:49]} 24. R4e2 {[%clk 0:01:59]}  e4 {[%clk 0:01:44]} 25. Bc3 {[%clk 0:01:57]}  Nd5 {[%clk 0:01:23]} 26. Ba5 {[%clk 0:01:53]}  Re8 {[%clk 0:01:15]} 27. Rxe4 {[%clk 0:01:52]}  Rxe4 {[%clk 0:01:10]} 28. Rxe4 {[%clk 0:01:53]}  Rf2 {[%clk 0:01:10]} 29. c4 {[%clk 0:01:48]}  Nf6 {[%clk 0:01:02]} 30. Re6 {[%clk 0:01:46]}  bxc4 {[%clk 0:00:58]} 31. Rxa6 {[%clk 0:01:45]}  h5 {[%clk 0:00:48]} 32. Bc3 {[%clk 0:01:42]}  Ng4+ {[%clk 0:00:47]} 33. Kg3 {[%clk 0:01:40]}  Re2 {[%clk 0:00:40]} 34. Rxg6 {[%clk 0:01:39]}  Kd7 {[%clk 0:00:33]} 35. a4 {[%clk 0:01:37]}  Re3+ {[%clk 0:00:21]} 36. Kh4 {[%clk 0:01:36]}  Re2 {[%clk 0:00:19]} 37. g3 {[%clk 0:01:30]}  Ne3 {[%clk 0:00:15]} 38. a5 {[%clk 0:01:28]}  Nd5 {[%clk 0:00:13]} 39. a6 {[%clk 0:01:25]}  Nxc3 {[%clk 0:00:12]} 40. bxc3 {[%clk 0:01:26]}  Ra2 {[%clk 0:00:12]} 41. a7 {[%clk 0:01:22]}  Ke7 {[%clk 0:00:10]} 42. Kxh5 {[%clk 0:01:20]}  Kf7 {[%clk 0:00:09]} 43. g4 {[%clk 0:01:19]}  Rxa7 {[%clk 0:00:09]} 44. Rc6 {[%clk 0:01:16]}  Ra5+ {[%clk 0:00:09]} 45. Kh4 {[%clk 0:01:16]}  Ra2 {[%clk 0:00:08]} 46. Rxc4 {[%clk 0:01:15]}  Kg6 {[%clk 0:00:08]} 47. Rc6+ {[%clk 0:01:15]}  Kg7 {[%clk 0:00:08]} 48. Kh5 {[%clk 0:01:15]}  Rh2+ {[%clk 0:00:07]} 49. Kg5 {[%clk 0:01:16]}  Rc2 {[%clk 0:00:08]} 50. Rc7+ {[%clk 0:01:17]}  Kf8 {[%clk 0:00:08]} 51. Kg6 {[%clk 0:01:16]}  Rc1 {[%clk 0:00:07]} 52. g5 {[%clk 0:01:16]}  Rc2 {[%clk 0:00:07]} 53. Rc8+ {[%clk 0:01:16]}  Ke7 {[%clk 0:00:06]} 54. Kg7 {[%clk 0:01:17]}  Rg2 {[%clk 0:00:06]} 55. g6 {[%clk 0:01:17]}  Kd7 {[%clk 0:00:06]} 56. Rc4 {[%clk 0:01:17]}  Rg3 {[%clk 0:00:06]} 57. Kh7 {[%clk 0:01:17]}  Rh3+ {[%clk 0:00:05]} 58. Kg8 {[%clk 0:01:17]}  Ke8 {[%clk 0:00:05]} 59. g7 {[%clk 0:01:17]}  Rf3 {[%clk 0:00:05]} 60. Re4+ {[%clk 0:01:18]}  Kd7 {[%clk 0:00:05]} 61. Re5 {[%clk 0:01:11]}  Rxc3 {[%clk 0:00:04]} 62. Kh7 {[%clk 0:01:10]}  Rh3+ {[%clk 0:00:04]} 63. Kg6 {[%clk 0:01:11]}  Rg3+ {[%clk 0:00:04]} 64. Rg5 {[%clk 0:01:11]} 1-0


[Site "https://www.chess.com"]

[Event "Titled Tuesday Blitz November 01 Late 2022"]
[White "Popilski, Gil"]
[Black "Yanchenko, Roman"]
[WhiteFideId "2809060"]
[BlackFideId "4137329"]
[WhiteElo "2544"]
[BlackElo "2783"]
[Result "0-1"]
[Round "02"]
[TimeControl "180+1"]
[Date "2022.11.02"]
[WhiteClock "0:00:08"]
[BlackClock "0:01:29"]

1. d4 {[%clk 0:02:59]}  d5 {[%clk 0:02:59]} 2. c4 {[%clk 0:02:58]}  c6 {[%clk 0:02:59]} 3. Nf3 {[%clk 0:02:58]}  Bf5 {[%clk 0:02:59]} 4. Qb3 {[%clk 0:02:55]}  Qb6 {[%clk 0:02:59]} 5. cxd5 {[%clk 0:02:54]}  Qxb3 {[%clk 0:02:59]} 6. axb3 {[%clk 0:02:54]}  cxd5 {[%clk 0:03:00]} 7. Nc3 {[%clk 0:02:53]}  e6 {[%clk 0:03:00]} 8. Nb5 {[%clk 0:02:52]}  Bb4+ {[%clk 0:03:00]} 9. Bd2 {[%clk 0:02:52]}  Bxd2+ {[%clk 0:02:59]} 10. Kxd2 {[%clk 0:02:53]}  Kd8 {[%clk 0:02:50]} 11. Nxa7 {[%clk 0:02:39]}  Na6 {[%clk 0:02:35]} 12. Nb5 {[%clk 0:02:33]}  Ke7 {[%clk 0:02:35]} 13. e3 {[%clk 0:02:33]}  Nf6 {[%clk 0:02:34]} 14. Nc3 {[%clk 0:02:27]}  Rhc8 {[%clk 0:02:31]} 15. Ra4 {[%clk 0:02:18]}  Ne4+ {[%clk 0:02:28]} 16. Nxe4 {[%clk 0:02:18]}  Bxe4 {[%clk 0:02:27]} 17. Bd3 {[%clk 0:02:14]}  Bxf3 {[%clk 0:02:26]} 18. gxf3 {[%clk 0:02:14]}  Nc7 {[%clk 0:02:26]} 19. Rc1 {[%clk 0:02:07]}  Kd6 {[%clk 0:02:26]} 20. Rb4 {[%clk 0:01:55]}  b5 {[%clk 0:02:25]} 21. Bxb5 {[%clk 0:01:50]}  Rab8 {[%clk 0:02:25]} 22. Rc6+ {[%clk 0:01:46]}  Ke7 {[%clk 0:02:24]} 23. Rc5 {[%clk 0:01:43]}  Kd8 {[%clk 0:02:18]} 24. f4 {[%clk 0:01:31]}  Rb6 {[%clk 0:02:18]} 25. Ra4 {[%clk 0:01:08]}  Rxb5 {[%clk 0:02:13]} 26. b4 {[%clk 0:01:04]}  Rb7 {[%clk 0:02:12]} 27. Kc3 {[%clk 0:01:02]}  Nb5+ {[%clk 0:02:11]} 28. Kb3 {[%clk 0:01:02]}  Nd6 {[%clk 0:02:11]} 29. f3 {[%clk 0:00:59]}  Nf5 {[%clk 0:02:09]} 30. e4 {[%clk 0:00:54]}  dxe4 {[%clk 0:02:06]} 31. fxe4 {[%clk 0:00:53]}  Nxd4+ {[%clk 0:02:05]} 32. Kc4 {[%clk 0:00:53]}  Nc2 {[%clk 0:01:59]} 33. b5 {[%clk 0:00:37]}  Ne3+ {[%clk 0:01:39]} 34. Kb4 {[%clk 0:00:36]}  Nc2+ {[%clk 0:01:39]} 35. Kc4 {[%clk 0:00:35]}  Rbc7 {[%clk 0:01:40]} 36. b4 {[%clk 0:00:31]}  Ne3+ {[%clk 0:01:32]} 37. Kd4 {[%clk 0:00:29]}  Ng2 {[%clk 0:01:32]} 38. b6 {[%clk 0:00:22]}  Rd7+ {[%clk 0:01:31]} 39. Kc4 {[%clk 0:00:20]}  Rb8 {[%clk 0:01:31]} 40. Kb5 {[%clk 0:00:18]}  Nxf4 {[%clk 0:01:31]} 41. Kc6 {[%clk 0:00:11]}  Nd3 {[%clk 0:01:31]} 42. Ra7 {[%clk 0:00:08]}  Nxb4+ {[%clk 0:01:28]} 43. Kb5 {[%clk 0:00:08]}  Rxa7 {[%clk 0:01:29]} 0-1


[Site "https://www.chess.com"]

[Event "Titled Tuesday Blitz November 01 Late 2022"]
[White "Postny, Evgeny"]
[Black "Rodrigues, Bruno Morado"]
[WhiteFideId "2804344"]
[BlackFideId "2115654"]
[WhiteElo "2473"]
[BlackElo "2040"]
[Result "1-0"]
[Round "02"]
[TimeControl "180+1"]
[Date "2022.11.02"]
[WhiteClock "0:00:11"]
[BlackClock "0:00:01"]

1. e4 {[%clk 0:03:00]}  c5 {[%clk 0:03:00]} 2. Nf3 {[%clk 0:03:00]}  Nc6 {[%clk 0:03:00]} 3. d4 {[%clk 0:03:01]}  cxd4 {[%clk 0:03:01]} 4. Nxd4 {[%clk 0:03:01]}  e5 {[%clk 0:03:00]} 5. Nb5 {[%clk 0:03:00]}  d6 {[%clk 0:03:01]} 6. c4 {[%clk 0:03:00]}  Be7 {[%clk 0:03:01]} 7. Be2 {[%clk 0:02:59]}  Be6 {[%clk 0:03:00]} 8. O-O {[%clk 0:02:59]}  Rc8 {[%clk 0:03:00]} 9. N1c3 {[%clk 0:02:57]}  a6 {[%clk 0:03:00]} 10. Na3 {[%clk 0:02:57]}  Nf6 {[%clk 0:02:58]} 11. Nc2 {[%clk 0:02:55]}  O-O {[%clk 0:02:58]} 12. Be3 {[%clk 0:02:49]}  Qc7 {[%clk 0:02:36]} 13. Rc1 {[%clk 0:02:48]}  Rfd8 {[%clk 0:02:36]} 14. Qd2 {[%clk 0:02:46]}  Qb8 {[%clk 0:02:36]} 15. f3 {[%clk 0:02:43]}  Rd7 {[%clk 0:02:33]} 16. Nd5 {[%clk 0:02:37]}  Bd8 {[%clk 0:02:33]} 17. Rfd1 {[%clk 0:02:25]}  Bxd5 {[%clk 0:02:28]} 18. cxd5 {[%clk 0:02:22]}  Ne7 {[%clk 0:02:20]} 19. Kh1 {[%clk 0:02:16]}  Rdc7 {[%clk 0:02:15]} 20. a4 {[%clk 0:02:10]}  b5 {[%clk 0:02:13]} 21. Nb4 {[%clk 0:01:53]}  Rxc1 {[%clk 0:02:02]} 22. Rxc1 {[%clk 0:01:54]}  bxa4 {[%clk 0:01:50]} 23. Nxa6 {[%clk 0:01:48]}  Qb7 {[%clk 0:01:40]} 24. Rxc8 {[%clk 0:01:35]}  Nxc8 {[%clk 0:01:37]} 25. Qb4 {[%clk 0:01:32]}  Qxb4 {[%clk 0:01:26]} 26. Nxb4 {[%clk 0:01:33]}  Bb6 {[%clk 0:01:26]} 27. Bc1 {[%clk 0:01:22]}  Bc5 {[%clk 0:01:21]} 28. Nc6 {[%clk 0:01:00]}  Nd7 {[%clk 0:01:11]} 29. g3 {[%clk 0:00:55]}  Kf8 {[%clk 0:00:50]} 30. Kg2 {[%clk 0:00:53]}  Ne7 {[%clk 0:00:50]} 31. Bb5 {[%clk 0:00:50]}  Nb6 {[%clk 0:00:45]} 32. Kf1 {[%clk 0:00:46]}  Nxc6 {[%clk 0:00:33]} 33. dxc6 {[%clk 0:00:39]}  Ke7 {[%clk 0:00:33]} 34. c7 {[%clk 0:00:37]}  Nc8 {[%clk 0:00:33]} 35. Bxa4 {[%clk 0:00:30]}  Bb6 {[%clk 0:00:33]} 36. Ke2 {[%clk 0:00:26]}  Bxc7 {[%clk 0:00:33]} 37. Kd3 {[%clk 0:00:26]}  Nb6 {[%clk 0:00:25]} 38. Bb3 {[%clk 0:00:25]}  Nd7 {[%clk 0:00:18]} 39. Bd5 {[%clk 0:00:23]}  Ba5 {[%clk 0:00:12]} 40. Kc4 {[%clk 0:00:21]}  f6 {[%clk 0:00:07]} 41. Kb5 {[%clk 0:00:19]}  Bb6 {[%clk 0:00:07]} 42. Kc6 {[%clk 0:00:17]}  Bg1 {[%clk 0:00:06]} 43. h3 {[%clk 0:00:16]}  Nb6 {[%clk 0:00:05]} 44. b4 {[%clk 0:00:15]}  Bf2 {[%clk 0:00:03]} 45. g4 {[%clk 0:00:14]}  g6 {[%clk 0:00:03]} 46. Bd2 {[%clk 0:00:12]}  h5 {[%clk 0:00:03]} 47. b5 {[%clk 0:00:11]}  hxg4 {[%clk 0:00:02]} 48. hxg4 {[%clk 0:00:11]}  Bd4 {[%clk 0:00:01]} 49. Ba5 {[%clk 0:00:11]} 1-0


[Site "https://www.chess.com"]

[Event "Titled Tuesday Blitz November 01 Late 2022"]
[White "Qashashvili, Alexandre"]
[Black "Baglan, Esat"]
[WhiteFideId "13600842"]
[BlackFideId "6309216"]
[WhiteElo "2405"]
[BlackElo "2231"]
[Result "0-1"]
[Round "02"]
[TimeControl "180+1"]
[Date "2022.11.02"]
[WhiteClock "0:00:28"]
[BlackClock "0:01:17"]

1. e4 {[%clk 0:02:57]}  c5 {[%clk 0:03:00]} 2. Nc3 {[%clk 0:02:57]}  g6 {[%clk 0:02:58]} 3. Nf3 {[%clk 0:02:55]}  Bg7 {[%clk 0:02:58]} 4. d3 {[%clk 0:02:55]}  Nc6 {[%clk 0:02:58]} 5. Be3 {[%clk 0:02:55]}  d6 {[%clk 0:02:58]} 6. Qd2 {[%clk 0:02:55]}  Bg4 {[%clk 0:02:53]} 7. Be2 {[%clk 0:02:55]}  Bxf3 {[%clk 0:02:53]} 8. Bxf3 {[%clk 0:02:54]}  Nd4 {[%clk 0:02:54]} 9. Bd1 {[%clk 0:02:53]}  e6 {[%clk 0:02:54]} 10. O-O {[%clk 0:02:51]}  Ne7 {[%clk 0:02:53]} 11. Bh6 {[%clk 0:02:47]}  O-O {[%clk 0:02:53]} 12. Bxg7 {[%clk 0:02:46]}  Kxg7 {[%clk 0:02:54]} 13. Ne2 {[%clk 0:02:46]}  Nxe2+ {[%clk 0:02:52]} 14. Bxe2 {[%clk 0:02:47]}  e5 {[%clk 0:02:51]} 15. f4 {[%clk 0:02:46]}  f6 {[%clk 0:02:51]} 16. Bg4 {[%clk 0:02:45]}  Qb6 {[%clk 0:02:47]} 17. b3 {[%clk 0:02:44]}  a5 {[%clk 0:02:42]} 18. c3 {[%clk 0:02:44]}  Rad8 {[%clk 0:02:26]} 19. Be6 {[%clk 0:02:42]}  d5 {[%clk 0:02:20]} 20. exd5 {[%clk 0:02:42]}  Nxd5 {[%clk 0:02:21]} 21. Bxd5 {[%clk 0:02:42]}  Rxd5 {[%clk 0:02:22]} 22. fxe5 {[%clk 0:02:42]}  Rxe5 {[%clk 0:02:23]} 23. Rae1 {[%clk 0:02:39]}  Rfe8 {[%clk 0:02:23]} 24. Rxe5 {[%clk 0:02:39]}  Rxe5 {[%clk 0:02:23]} 25. Re1 {[%clk 0:02:04]}  c4+ {[%clk 0:02:17]} 26. d4 {[%clk 0:02:01]}  cxb3 {[%clk 0:02:16]} 27. Rxe5 {[%clk 0:01:55]}  fxe5 {[%clk 0:02:17]} 28. axb3 {[%clk 0:01:52]}  Qxb3 {[%clk 0:02:10]} 29. dxe5 {[%clk 0:01:52]}  Qb1+ {[%clk 0:02:10]} 30. Kf2 {[%clk 0:01:41]}  Qf5+ {[%clk 0:02:10]} 31. Kg1 {[%clk 0:01:26]}  Qxe5 {[%clk 0:02:10]} 32. Qd7+ {[%clk 0:01:26]}  Kh6 {[%clk 0:02:08]} 33. Qh3+ {[%clk 0:01:24]}  Kg7 {[%clk 0:02:06]} 34. Qd7+ {[%clk 0:01:23]}  Kf6 {[%clk 0:02:06]} 35. Qd8+ {[%clk 0:01:14]}  Qe7 {[%clk 0:02:06]} 36. Qd4+ {[%clk 0:01:05]}  Kf7 {[%clk 0:02:04]} 37. Qd5+ {[%clk 0:01:02]}  Kf8 {[%clk 0:02:02]} 38. h3 {[%clk 0:00:52]}  Qe1+ {[%clk 0:01:59]} 39. Kh2 {[%clk 0:00:52]}  Qxc3 {[%clk 0:01:53]} 40. Qxb7 {[%clk 0:00:52]}  h5 {[%clk 0:01:48]} 41. h4 {[%clk 0:00:48]}  Qe5+ {[%clk 0:01:44]} 42. g3 {[%clk 0:00:43]}  Qf5 {[%clk 0:01:20]} 43. Qa7 {[%clk 0:00:36]}  Ke8 {[%clk 0:01:19]} 44. Kg2 {[%clk 0:00:35]}  Qe4+ {[%clk 0:01:17]} 45. Kh2 {[%clk 0:00:31]}  a4 {[%clk 0:01:17]} 46. Kh3 {[%clk 0:00:28]}  Qh1# {[%clk 0:01:17]} 0-1


[Site "https://www.chess.com"]

[Event "Titled Tuesday Blitz November 01 Late 2022"]
[White "Richter, Paul"]
[Black "Boruchovsky, Avital"]
[WhiteFideId "2046350"]
[BlackFideId "2800055"]
[WhiteElo "2578"]
[BlackElo "2829"]
[Result "0-1"]
[Round "02"]
[TimeControl "180+1"]
[Date "2022.11.02"]
[WhiteClock "0:00:04"]
[BlackClock "0:00:18"]

1. e4 {[%clk 0:03:00]}  e5 {[%clk 0:02:59]} 2. Nf3 {[%clk 0:03:00]}  Nc6 {[%clk 0:02:59]} 3. Bb5 {[%clk 0:03:00]}  a6 {[%clk 0:02:59]} 4. Ba4 {[%clk 0:03:00]}  Nf6 {[%clk 0:02:59]} 5. d3 {[%clk 0:03:00]}  b5 {[%clk 0:02:57]} 6. Bb3 {[%clk 0:03:00]}  Be7 {[%clk 0:02:58]} 7. O-O {[%clk 0:02:58]}  Bb7 {[%clk 0:02:58]} 8. Re1 {[%clk 0:02:56]}  O-O {[%clk 0:02:57]} 9. Nbd2 {[%clk 0:02:56]}  d6 {[%clk 0:02:54]} 10. c3 {[%clk 0:02:55]}  Qd7 {[%clk 0:02:51]} 11. Nf1 {[%clk 0:02:55]}  Nd8 {[%clk 0:02:52]} 12. Ng3 {[%clk 0:02:52]}  c5 {[%clk 0:02:52]} 13. Nf5 {[%clk 0:02:50]}  Ne6 {[%clk 0:02:51]} 14. c4 {[%clk 0:02:30]}  Bd8 {[%clk 0:02:46]} 15. h3 {[%clk 0:02:12]}  g6 {[%clk 0:02:43]} 16. Ne3 {[%clk 0:01:53]}  Nf4 {[%clk 0:02:30]} 17. Nd5 {[%clk 0:01:44]}  N6xd5 {[%clk 0:02:25]} 18. cxd5 {[%clk 0:01:32]}  Bf6 {[%clk 0:02:21]} 19. Bxf4 {[%clk 0:01:23]}  exf4 {[%clk 0:02:21]} 20. d4 {[%clk 0:01:24]}  cxd4 {[%clk 0:02:19]} 21. Nxd4 {[%clk 0:01:22]}  Rac8 {[%clk 0:02:16]} 22. Qd2 {[%clk 0:01:13]}  Rc5 {[%clk 0:02:06]} 23. Rad1 {[%clk 0:01:00]}  Be5 {[%clk 0:01:56]} 24. Nf3 {[%clk 0:00:44]}  Qe7 {[%clk 0:01:56]} 25. Rc1 {[%clk 0:00:38]}  Rfc8 {[%clk 0:01:55]} 26. Rxc5 {[%clk 0:00:39]}  Rxc5 {[%clk 0:01:55]} 27. Rc1 {[%clk 0:00:38]}  Rxc1+ {[%clk 0:01:32]} 28. Qxc1 {[%clk 0:00:39]}  Bf6 {[%clk 0:01:28]} 29. Qc2 {[%clk 0:00:25]}  Kg7 {[%clk 0:01:21]} 30. a3 {[%clk 0:00:25]}  Qd8 {[%clk 0:01:18]} 31. a4 {[%clk 0:00:22]}  Qb6 {[%clk 0:01:11]} 32. axb5 {[%clk 0:00:21]}  Qxb5 {[%clk 0:01:09]} 33. Nd2 {[%clk 0:00:16]}  a5 {[%clk 0:01:01]} 34. Nc4 {[%clk 0:00:15]}  Ba6 {[%clk 0:00:47]} 35. Kh2 {[%clk 0:00:06]}  Qc5 {[%clk 0:00:25]} 36. Ba2 {[%clk 0:00:06]}  Bd4 {[%clk 0:00:24]} 37. f3 {[%clk 0:00:04]}  Qb4 {[%clk 0:00:18]} 0-1


[Site "https://www.chess.com"]

[Event "Titled Tuesday Blitz November 01 Late 2022"]
[White "Roman, Rodrigo"]
[Black "Ramirez, Alejandro"]
[WhiteFideId "3701220"]
[BlackFideId "6500617"]
[WhiteElo "2001"]
[BlackElo "2694"]
[Result "0-1"]
[Round "02"]
[TimeControl "180+1"]
[Date "2022.11.02"]
[WhiteClock "0:00:04"]
[BlackClock "0:00:08"]

1. e4 {[%clk 0:03:00]}  c5 {[%clk 0:02:59]} 2. Nf3 {[%clk 0:02:57]}  e6 {[%clk 0:03:00]} 3. g3 {[%clk 0:02:58]}  a6 {[%clk 0:03:00]} 4. Bg2 {[%clk 0:02:58]}  b5 {[%clk 0:03:00]} 5. O-O {[%clk 0:02:59]}  Bb7 {[%clk 0:03:01]} 6. Re1 {[%clk 0:02:59]}  d6 {[%clk 0:03:01]} 7. d4 {[%clk 0:02:59]}  cxd4 {[%clk 0:03:01]} 8. Nxd4 {[%clk 0:03:00]}  Be7 {[%clk 0:03:02]} 9. a4 {[%clk 0:02:59]}  bxa4 {[%clk 0:02:55]} 10. Rxa4 {[%clk 0:02:59]}  Nd7 {[%clk 0:02:55]} 11. Ra1 {[%clk 0:02:57]}  Rb8 {[%clk 0:02:52]} 12. Nc3 {[%clk 0:02:56]}  Ngf6 {[%clk 0:02:52]} 13. Be3 {[%clk 0:02:49]}  O-O {[%clk 0:02:52]} 14. Nb3 {[%clk 0:02:48]}  Qc7 {[%clk 0:02:48]} 15. Qd2 {[%clk 0:02:45]}  Ne5 {[%clk 0:02:47]} 16. Na5 {[%clk 0:02:45]}  Ba8 {[%clk 0:02:46]} 17. b3 {[%clk 0:02:45]}  Rfc8 {[%clk 0:02:44]} 18. Bd4 {[%clk 0:02:45]}  Ned7 {[%clk 0:02:34]} 19. Nc4 {[%clk 0:02:35]}  e5 {[%clk 0:02:12]} 20. Be3 {[%clk 0:02:33]}  h6 {[%clk 0:02:13]} 21. Rxa6 {[%clk 0:02:26]}  Nc5 {[%clk 0:02:08]} 22. Bxc5 {[%clk 0:02:01]}  Qxc5 {[%clk 0:02:09]} 23. Rd1 {[%clk 0:01:51]}  Bb7 {[%clk 0:01:53]} 24. Ra5 {[%clk 0:01:48]}  Qc6 {[%clk 0:01:53]} 25. Nd5 {[%clk 0:01:43]}  Nxd5 {[%clk 0:01:50]} 26. Rxd5 {[%clk 0:01:44]}  Rc7 {[%clk 0:01:19]} 27. Ra1 {[%clk 0:01:12]}  Bg5 {[%clk 0:00:48]} 28. Qb4 {[%clk 0:01:05]}  Be7 {[%clk 0:00:43]} 29. h4 {[%clk 0:00:59]}  Qe8 {[%clk 0:00:40]} 30. Rb5 {[%clk 0:00:56]}  d5 {[%clk 0:00:32]} 31. Nd6 {[%clk 0:00:55]}  Qd7 {[%clk 0:00:27]} 32. Rb6 {[%clk 0:00:47]}  Kh7 {[%clk 0:00:14]} 33. Ra7 {[%clk 0:00:45]}  d4 {[%clk 0:00:10]} 34. Kh2 {[%clk 0:00:17]}  Bc6 {[%clk 0:00:10]} 35. Rxc7 {[%clk 0:00:15]}  Qxc7 {[%clk 0:00:11]} 36. Rxc6 {[%clk 0:00:10]}  Qxc6 {[%clk 0:00:11]} 37. Qxb8 {[%clk 0:00:10]}  Bxd6 {[%clk 0:00:12]} 38. Qd8 {[%clk 0:00:06]}  Bb4 {[%clk 0:00:11]} 39. Qb8 {[%clk 0:00:03]}  Bd6 {[%clk 0:00:10]} 40. Qd8 {[%clk 0:00:03]}  h5 {[%clk 0:00:09]} 41. Qg5 {[%clk 0:00:03]}  g6 {[%clk 0:00:09]} 42. Qf6 {[%clk 0:00:03]}  Kg8 {[%clk 0:00:09]} 43. f4 {[%clk 0:00:04]}  Qc7 {[%clk 0:00:07]} 44. fxe5 {[%clk 0:00:04]}  Bxe5 {[%clk 0:00:08]} 45. Qf2 {[%clk 0:00:03]}  Qc3 {[%clk 0:00:08]} 46. Kh3 {[%clk 0:00:03]}  d3 {[%clk 0:00:07]} 47. cxd3 {[%clk 0:00:04]}  Qxd3 {[%clk 0:00:07]} 48. Kh2 {[%clk 0:00:04]}  Qxb3 {[%clk 0:00:08]} 49. Bh3 {[%clk 0:00:05]}  Qd3 {[%clk 0:00:08]} 50. Qg2 {[%clk 0:00:05]}  Kg7 {[%clk 0:00:08]} 51. Bc8 {[%clk 0:00:05]}  Qc3 {[%clk 0:00:08]} 52. Bb7 {[%clk 0:00:05]}  Qc7 {[%clk 0:00:08]} 53. Bd5 {[%clk 0:00:05]}  Qd6 {[%clk 0:00:08]} 54. Kh3 {[%clk 0:00:06]}  Qd7+ {[%clk 0:00:09]} 55. Kh2 {[%clk 0:00:06]}  Qa4 {[%clk 0:00:09]} 56. Kh3 {[%clk 0:00:07]}  Qd4 {[%clk 0:00:10]} 57. Kh2 {[%clk 0:00:07]}  Qe3 {[%clk 0:00:09]} 58. Kh3 {[%clk 0:00:07]}  f6 {[%clk 0:00:10]} 59. Kh2 {[%clk 0:00:07]}  g5 {[%clk 0:00:10]} 60. hxg5 {[%clk 0:00:07]}  fxg5 {[%clk 0:00:11]} 61. Be6 {[%clk 0:00:07]}  h4 {[%clk 0:00:12]} 62. Kh3 {[%clk 0:00:07]}  Bxg3 {[%clk 0:00:12]} 63. Kg4 {[%clk 0:00:06]}  Kh6 {[%clk 0:00:10]} 64. Bf5 {[%clk 0:00:05]}  Be5 {[%clk 0:00:08]} 65. Qf3 {[%clk 0:00:05]}  Qg1+ {[%clk 0:00:08]} 66. Kh3 {[%clk 0:00:04]}  g4+ {[%clk 0:00:07]} 67. Bxg4 {[%clk 0:00:04]}  Qh2# {[%clk 0:00:08]} 0-1


[Site "https://www.chess.com"]